bitfinex/quotes_BTCUSD_20241229
["timestamp","ask_amount","ask_price","bid_price","bid_amount"]
[1735513946736,0.20622223,93278.0,93261.0,0.00107203]
[1735513947412,0.20622223,93278.0,93260.0,0.00050886]
[1735513947965,0.0751,93269.0,93260.0,0.00250886]
[1735513948160,0.10398632,93268.0,93260.0,0.00250886]
[1735513948363,0.1,93262.0,93260.0,0.00050886]
[1735513948515,0.07724232,93261.0,93260.0,0.00050886]
[1735513949307,0.07724232,93261.0,93260.0,0.00450886]
[1735513949842,0.18122864,93261.0,93260.0,0.00450886]
[1735513950041,0.18122864,93261.0,93229.0,0.01698658]
[1735513950042,0.0751,93260.0,93229.0,0.01698658]
[1735513950402,0.10398632,93259.0,93227.0,0.01698658]
[1735513950588,0.10607235,93259.0,93226.0,0.01698658]
[1735513951135,0.0751,93258.0,93226.0,0.01698658]
[1735513951332,0.0751,93258.0,93229.0,0.01698658]
[1735513951333,0.10607176,93257.0,93229.0,0.01698658]
[1735513951650,0.0476,93256.0,93229.0,0.01698658]
[1735513951855,0.10398632,93255.0,93229.0,0.01698658]
[1735513952456,0.00208544,93254.0,93229.0,0.01698658]
[1735513952662,0.00208544,93254.0,93230.0,0.10398632]
[1735513953340,0.00208544,93254.0,93253.0,0.01698658]
[1735513953537,0.00208544,93254.0,93253.0,0.1209729]
[1735513953740,0.001,93259.0,93256.0,0.01698658]
[1735513953956,0.001,93259.0,93257.0,0.10398632]
[1735513954164,0.00050928,93261.0,93260.0,0.01698658]
[1735513954310,0.00050928,93261.0,93260.0,0.2209729]
[1735513956957,0.0801,93306.0,93296.0,0.01698658]
[1735513957156,0.00015274,93302.0,93297.0,0.10398632]
[1735513957369,0.00015274,93302.0,93301.0,0.01698658]
[1735513957567,0.00015274,93302.0,93301.0,0.1209729]
[1735513958411,0.00015274,93302.0,93301.0,0.10398632]
[1735513958587,0.00115274,93302.0,93297.0,0.009]
[1735513958949,0.00115274,93302.0,93298.0,0.01698658]
[1735513959124,0.00015274,93302.0,93301.0,0.003]
[1735513960293,0.00015274,93302.0,93291.0,0.01698658]
[1735513960498,0.00115274,93302.0,93301.0,0.009]
[1735513960714,0.00115274,93302.0,93301.0,0.11298632]
[1735513960975,0.00115274,93302.0,93301.0,0.1299729]
[1735513963077,0.00115274,93302.0,93301.0,0.2299729]
[1735513964212,0.00115274,93302.0,93301.0,0.2329729]
[1735513965545,0.00115274,93302.0,93301.0,0.012]
[1735513966552,0.08125274,93302.0,93301.0,0.012]
[1735513966988,0.0833373,93302.0,93301.0,0.012]
[1735513968139,0.0835079,93302.0,93301.0,0.012]
[1735513970663,0.23419422,93302.0,93301.0,0.012]
[1735513971721,0.23419422,93302.0,93301.0,0.009]
[1735513971933,0.23319422,93302.0,93269.0,0.01698658]
[1735513972138,0.10398632,93301.0,93269.0,0.01698658]
[1735513972445,0.01924904,93300.0,93269.0,0.01698658]
[1735513972641,0.10398632,93299.0,93260.0,0.1]
[1735513972844,0.0822,93298.0,93251.0,0.19498079]
[1735513972989,0.10398632,93297.0,93264.0,0.00395158]
[1735513973423,0.00197457,93296.0,93264.0,0.00395158]
[1735513973623,0.10398632,93295.0,93264.0,0.00395158]
[1735513974094,0.00197426,93294.0,93264.0,0.00395158]
[1735513974311,0.10398632,93293.0,93264.0,0.00395158]
[1735513974702,0.00196936,93292.0,93269.0,0.002]
[1735513974904,0.10398632,93291.0,93269.0,0.002]
[1735513975405,0.00196828,93290.0,93264.0,0.00395158]
[1735513975662,0.10398632,93289.0,93264.0,0.00395158]
[1735513975862,0.10398632,93289.0,93264.0,0.00495158]
[1735513976017,0.1289,93288.0,93265.0,0.00107195]
[1735513976228,0.12727495,93287.0,93265.0,0.00107195]
[1735513976427,0.10398632,93287.0,93265.0,0.00107195]
[1735513976638,0.0016871,93286.0,93264.0,0.001]
[1735513976829,0.18618632,93285.0,93264.0,0.001]
[1735513977235,0.18618632,93285.0,93265.0,0.002]
[1735513977439,0.0016871,93284.0,93265.0,0.002]
[1735513977653,0.10398632,93283.0,93265.0,0.002]
[1735513977859,0.10398632,93283.0,93257.0,0.00395158]
[1735513978083,0.10398632,93283.0,93264.0,0.002]
[1735513978274,0.0016871,93282.0,93269.0,0.005]
[1735513978610,0.10398632,93281.0,93264.0,0.002]
[1735513978906,0.10398632,93281.0,93265.0,0.009]
[1735513979220,0.0016871,93280.0,93264.0,0.002]
[1735513979622,0.001,93282.0,93269.0,0.009]
[1735513979827,0.001,93282.0,93264.0,0.002]
[1735513979828,0.00165668,93279.0,93264.0,0.002]
[1735513980030,0.10398632,93282.0,93261.0,8.53e-05]
[1735513980234,0.00165668,93278.0,93265.0,0.003]
[1735513980440,0.10398632,93277.0,93265.0,0.003]
[1735513980689,0.1289,93276.0,93265.0,0.003]
[1735513980900,0.0822,93269.0,93261.0,8.53e-05]
[1735513981100,0.0822,93265.0,93261.0,8.53e-05]
[1735513981314,0.00165185,93275.0,93261.0,8.53e-05]
[1735513981315,0.14274842,93262.0,93261.0,8.53e-05]
[1735513981519,0.32893474,93262.0,93261.0,8.53e-05]
[1735513981735,0.09604842,93257.0,93230.0,8.53e-05]
[1735513981931,0.0822,93255.0,93230.0,8.53e-05]
[1735513982133,0.10398632,93254.0,93230.0,0.00059458]
[1735513982406,0.0822,93253.0,93230.0,0.00059458]
[1735513982622,0.10398632,93252.0,93230.0,0.00059458]
[1735513982821,0.10591064,93252.0,93230.0,0.00059458]
[1735513984225,0.10691064,93252.0,93230.0,0.00059458]
[1735513984852,0.03318591,93251.0,93230.0,0.00059458]
[1735513985077,0.10398632,93250.0,93230.0,0.00059458]
[1735513985458,0.00190441,93249.0,93230.0,0.00059458]
[1735513985664,0.10398632,93248.0,93230.0,0.00059458]
[1735513986281,0.00190441,93247.0,93230.0,0.00059458]
[1735513986641,0.10398632,93246.0,93230.0,0.00059458]
[1735513986999,0.08882142,93245.0,93230.0,0.00059458]
[1735513987201,0.10398632,93244.0,93230.0,0.00059458]
[1735513987453,0.10398632,93244.0,93230.0,0.00359458]
[1735513987601,0.00163235,93243.0,93230.0,0.00359458]
[1735513987801,0.10398632,93242.0,93230.0,0.00359458]
[1735513988003,0.01822187,93241.0,93230.0,0.00359458]
[1735513988263,0.00163235,93240.0,93230.0,0.00359458]
[1735513988389,0.00163235,93240.0,93230.0,0.00259458]
[1735513988780,0.00163235,93240.0,93230.0,0.00859458]
[1735513988982,0.00163235,93240.0,93230.0,0.00059458]
[1735513989189,0.00163235,93240.0,93230.0,0.00259458]
[1735513989803,0.00163235,93240.0,93230.0,0.00059458]
[1735513990015,0.0766,93237.0,93230.0,0.00359458]
[1735513990191,0.10398632,93236.0,93230.0,0.00359458]
[1735513990390,0.105594,93236.0,93230.0,0.01259458]
[1735513990545,0.105594,93236.0,93230.0,0.00359458]
[1735513990774,0.105594,93236.0,93230.0,0.00059458]
[1735513990969,0.105594,93236.0,93230.0,0.00959458]
[1735513991344,0.105594,93236.0,93230.0,0.00059458]
[1735513991345,0.13847824,93236.0,93230.0,0.00059458]
[1735513991549,0.105594,93236.0,93230.0,0.00059458]
[1735513991747,0.105594,93236.0,93230.0,0.00459458]
[1735513991983,0.105594,93236.0,93230.0,0.00059458]
[1735513992150,0.00160768,93236.0,93230.0,0.00059458]
[1735513992350,0.00160768,93236.0,93230.0,0.00459458]
[1735513992710,0.0496,93253.0,93231.0,0.10398632]
[1735513992875,0.00153965,93235.0,93230.0,0.00854616]
[1735513993039,0.0496,93253.0,93231.0,0.10398632]
[1735513993234,0.0496,93253.0,93233.0,0.00395158]
[1735513993479,0.0766,93260.0,93239.0,0.00395158]
[1735513993480,0.00153965,93252.0,93239.0,0.00395158]
[1735513993698,0.00153965,93252.0,93242.0,0.00395158]
[1735513993897,0.0496,93267.0,93243.0,0.10398632]
[1735513994330,0.0496,93267.0,93244.0,0.00107216]
[1735513994331,0.00153965,93266.0,93244.0,0.00107216]
[1735513994749,0.10398632,93265.0,93231.0,0.002]
[1735513994956,0.001,93252.0,93242.0,0.009]
[1735513995282,0.001,93252.0,93242.0,0.01295158]
[1735513995705,0.10398632,93265.0,93242.0,0.00395158]
[1735513995914,0.10398632,93265.0,93244.0,0.009]
[1735513996108,0.00153965,93264.0,93245.0,0.10398632]
[1735513996687,0.001,93266.0,93245.0,0.10398632]
[1735513997312,0.001,93266.0,93244.0,0.009]
[1735513997525,0.0496,93267.0,93245.0,0.10398632]
[1735513997730,0.0496,93267.0,93242.0,0.00395158]
[1735513997731,0.00153965,93265.0,93242.0,0.00395158]
[1735513997939,0.001,93252.0,93245.0,0.003]
[1735513998144,0.00155981,93264.0,93245.0,0.003]
[1735513998373,0.10398632,93263.0,93245.0,0.003]
[1735513998588,0.10554613,93263.0,93245.0,0.003]
[1735513998800,0.0804,93262.0,93245.0,0.003]
[1735513999000,0.10398632,93261.0,93245.0,0.003]
[1735513999206,0.10398632,93261.0,93245.0,0.009]
[1735513999207,0.001,93252.0,93245.0,0.009]
[1735513999648,0.0456,93250.0,93245.0,0.002]
[1735513999819,0.10398632,93249.0,93245.0,0.002]
[1735514000027,0.00155547,93248.0,93225.0,8.53e-05]
[1735514000225,0.10398632,93247.0,93225.0,8.53e-05]
[1735514000385,0.00155219,93246.0,93225.0,8.53e-05]
[1735514000586,0.0804,93244.0,93225.0,8.53e-05]
[1735514000792,0.10553823,93243.0,93225.0,8.53e-05]
[1735514001977,0.09604842,93242.0,93230.0,0.00559458]
[1735514002197,0.10398632,93241.0,93230.0,0.00559458]
[1735514002399,0.10553232,93241.0,93230.0,0.00059458]
[1735514002640,0.10553232,93241.0,93239.0,8.53e-05]
[1735514003379,0.20158074,93241.0,93230.0,0.00059458]
[1735514003583,0.20158074,93241.0,93230.0,0.00159458]
[1735514003812,0.10553232,93241.0,93230.0,0.00159458]
[1735514004152,0.09604842,93232.0,93230.0,0.00059458]
[1735514004429,0.20003474,93231.0,93230.0,0.00059458]
[1735514004628,0.20157318,93231.0,93230.0,0.00559458]
[1735514004835,0.20157318,93231.0,93230.0,0.00059458]
[1735514005215,0.00153844,93231.0,93230.0,0.00559458]
[1735514005381,0.09604842,93236.0,93230.0,0.00059458]
[1735514005582,0.0015356,93235.0,93230.0,0.00059458]
[1735514005786,0.0015356,93235.0,93230.0,0.00559458]
[1735514006031,0.126,93237.0,93230.0,0.00559458]
[1735514006241,0.0015356,93234.0,93230.0,0.00859458]
[1735514006463,0.0001706,93302.0,93230.0,0.00859458]
[1735514006464,0.0804,93250.0,93230.0,0.00859458]
[1735514006666,0.0015356,93233.0,93231.0,0.00104064]
[1735514006885,0.10398632,93249.0,93231.0,0.00104064]
[1735514007086,0.0015356,93232.0,93231.0,0.00104064]
[1735514007290,0.0804,93250.0,93231.0,0.00104064]
[1735514007602,0.0456,93265.0,93231.0,0.00104064]
[1735514007753,0.18592192,93264.0,93231.0,0.00404064]
[1735514008548,0.18592192,93264.0,93232.0,0.10398632]
[1735514008549,0.09604842,93260.0,93232.0,0.10398632]
[1735514008760,0.09604842,93260.0,93233.0,0.00104061]
[1735514008955,0.0015356,93259.0,93234.0,0.10398632]
[1735514009314,0.0015356,93259.0,93235.0,0.00099058]
[1735514009520,0.0015356,93259.0,93236.0,0.10398632]
[1735514009724,0.0804,93264.0,93237.0,0.00094055]
[1735514009938,0.00154539,93258.0,93238.0,0.10398632]
[1735514010141,0.0804,93264.0,93239.0,0.00093807]
[1735514010504,0.09604842,93262.0,93239.0,0.00093807]
[1735514010929,0.10398632,93261.0,93233.0,0.007]
[1735514011129,0.10553171,93261.0,93238.0,0.003]
[1735514011712,0.10553171,93261.0,93238.0,0.00295]
[1735514012297,0.00154539,93261.0,93239.0,0.10398632]
[1735514012484,0.00154539,93261.0,93239.0,0.1079379]
[1735514012700,0.0001706,93266.0,93239.0,0.10598632]
[1735514012898,0.001,93259.0,93239.0,0.1099379]
[1735514013108,0.0001706,93266.0,93239.0,0.1099379]
[1735514013109,0.0001706,93266.0,93239.0,0.1079379]
[1735514013508,0.001,93261.0,93239.0,0.1148879]
[1735514013816,0.0001706,93266.0,93239.0,0.1078879]
[1735514014223,0.001,93259.0,93239.0,0.1168879]
[1735514014423,0.001,93259.0,93239.0,0.1168379]
[1735514014630,0.0001706,93266.0,93239.0,0.1078379]
[1735514014834,0.0001706,93266.0,93239.0,0.1108379]
[1735514015700,0.0001706,93266.0,93240.0,0.00107213]
[1735514015897,0.0001706,93266.0,93241.0,0.10398632]
[1735514016304,0.0001706,93266.0,93242.0,0.0010722]
[1735514016504,0.10415692,93266.0,93239.0,0.009]
[1735514016730,0.0463,93259.0,93238.0,0.09506609]
[1735514016909,0.10398632,93258.0,93239.0,0.004]
[1735514017131,0.10398632,93258.0,93241.0,0.009]
[1735514017334,0.0808,93256.0,93241.0,0.009]
[1735514017539,0.18478632,93256.0,93238.0,0.09506609]
[1735514017742,0.00175661,93255.0,93239.0,0.003]
[1735514017918,0.00175661,93255.0,93239.0,0.011]
[1735514018098,0.10398632,93254.0,93239.0,0.003]
[1735514018301,0.10398632,93254.0,93238.0,8.53e-05]
[1735514018496,0.00175634,93253.0,93238.0,8.53e-05]
[1735514018763,0.10398632,93252.0,93241.0,0.004]
[1735514018964,0.09604842,93251.0,93241.0,0.004]
[1735514019224,0.10398632,93252.0,93241.0,0.004]
[1735514019225,0.10573722,93250.0,93241.0,0.004]
[1735514019928,0.10573722,93250.0,93241.0,0.009]
[1735514020083,0.10573722,93250.0,93238.0,8.53e-05]
[1735514020290,0.10573722,93250.0,93241.0,0.009]
[1735514020494,0.0017509,93250.0,93241.0,0.009]
[1735514020892,0.0463,93259.0,93241.0,0.009]
[1735514021089,0.0463,93259.0,93241.0,0.013]
[1735514021289,0.00166915,93258.0,93241.0,0.013]
[1735514021924,0.00166915,93258.0,93241.0,0.00895]
[1735514022239,0.09604842,93265.0,93241.0,0.00895]
[1735514022439,0.10565547,93264.0,93241.0,0.00895]
[1735514022873,0.10565547,93264.0,93238.0,8.53e-05]
[1735514023082,0.10565547,93264.0,93241.0,0.007]
[1735514023580,0.10565547,93264.0,93238.0,8.53e-05]
[1735514023803,0.10565547,93264.0,93241.0,0.006]
[1735514024191,0.04050064,93263.0,93241.0,0.0059]
[1735514024399,0.10398632,93262.0,93241.0,0.0039]
[1735514024601,0.10398632,93262.0,93238.0,8.53e-05]
[1735514024602,0.10565723,93262.0,93238.0,8.53e-05]
[1735514024804,0.10565723,93262.0,93241.0,0.001]
[1735514025457,0.10565723,93262.0,93238.0,0.0040853]
[1735514026180,0.10565723,93262.0,93238.0,8.53e-05]
[1735514026396,0.10565723,93262.0,93241.0,0.005]
[1735514026950,0.10582783,93262.0,93238.0,8.53e-05]
[1735514027366,0.01867984,93261.0,93238.0,0.0050853]
[1735514027599,0.10398632,93260.0,93238.0,0.0050853]
[1735514027791,0.10565713,93260.0,93241.0,0.001]
[1735514028118,0.09604842,93252.0,93241.0,0.001]
[1735514028315,0.24069116,93251.0,93241.0,0.005]
[1735514028613,0.24236612,93251.0,93241.0,0.005]
[1735514029109,0.10398632,93250.0,93241.0,0.005]
[1735514029315,0.1055912,93250.0,93241.0,0.005]
[1735514029697,0.1055912,93250.0,93238.0,8.53e-05]
[1735514030051,0.1055912,93250.0,93241.0,0.006]
[1735514030182,0.1055912,93250.0,93238.0,8.53e-05]
[1735514030593,0.1055912,93250.0,93241.0,0.006]
[1735514030854,0.00160488,93250.0,93241.0,0.006]
[1735514031045,0.00160488,93250.0,93241.0,0.007]
[1735514031271,0.06059465,93262.0,93241.0,0.00695]
[1735514031530,0.00159384,93249.0,93241.0,0.001]
[1735514031739,0.0001706,93262.0,93238.0,8.53e-05]
[1735514031939,0.00159384,93248.0,93238.0,0.10407162]
[1735514032144,0.0001706,93262.0,93239.0,0.10398632]
[1735514032555,0.00159384,93261.0,93239.0,0.10398632]
[1735514032771,0.0001706,93262.0,93241.0,0.001]
[1735514032984,0.0001706,93262.0,93242.0,0.10398632]
[1735514033422,0.10398632,93261.0,93238.0,8.53e-05]
[1735514033620,0.0001706,93262.0,93238.0,8.53e-05]
[1735514033754,0.0016076,93260.0,93238.0,8.53e-05]
[1735514033954,0.0001706,93262.0,93239.0,0.004]
[1735514034163,0.0001706,93262.0,93240.0,0.00107235]
[1735514034363,0.0001706,93262.0,93240.0,0.10505867]
[1735514036097,0.0001706,93262.0,93240.0,0.10705867]
[1735514036550,0.0001706,93262.0,93240.0,0.002]
[1735514036826,0.0001706,93262.0,93240.0,0.01]
[1735514036827,0.06042405,93257.0,93240.0,0.01]
[1735514037014,0.0473,93256.0,93240.0,0.01]
[1735514037391,0.0016076,93255.0,93240.0,0.01]
[1735514037575,0.0016076,93255.0,93240.0,0.002]
[1735514037771,0.0016076,93255.0,93238.0,8.53e-05]
[1735514038391,0.0016076,93255.0,93240.0,8.53e-05]
[1735514038780,0.19388217,93254.0,93240.0,8.53e-05]
[1735514039007,0.06042405,93250.0,93240.0,8.53e-05]
[1735514039185,0.16441037,93250.0,93240.0,8.53e-05]
[1735514039390,0.00159867,93249.0,93240.0,8.53e-05]
[1735514040489,0.06042405,93246.0,93240.0,0.0010853]
[1735514040647,0.12058722,93245.0,93240.0,8.53e-05]
[1735514040858,0.06042405,93241.0,93240.0,8.53e-05]
[1735514041207,0.16441037,93241.0,93240.0,0.0040853]
[1735514041336,0.16600802,93241.0,93240.0,0.0040353]
[1735514041753,0.16600802,93241.0,93240.0,3.53e-05]
[1735514041940,4.76043891,93241.0,93240.0,3.53e-05]
[1735514042134,0.16042405,93239.0,93238.0,8.53e-05]
[1735514042430,0.24082405,93231.0,93230.0,0.00059458]
[1735514042637,4.81247637,93231.0,93230.0,0.00059458]
[1735514042800,4.81405145,93231.0,93230.0,0.00059458]
[1735514042951,4.91803777,93231.0,93230.0,0.00059458]
[1735514043322,4.92233877,93231.0,93230.0,0.00059458]
[1735514043471,4.81835245,93231.0,93230.0,0.00059458]
[1735514043677,0.72826245,93231.0,93230.0,0.00059458]
[1735514044033,0.00150945,93231.0,93230.0,0.00059458]
[1735514044280,0.001,93241.0,93230.0,0.00159458]
[1735514044474,0.00150565,93231.0,93230.0,0.00159458]
[1735514044674,0.001,93241.0,93230.0,0.00059458]
[1735514044813,0.00150565,93231.0,93230.0,0.00059458]
[1735514045156,0.001,93231.0,93230.0,0.00059458]
[1735514045369,0.00250565,93231.0,93230.0,0.00059458]
[1735514045564,0.0485,93252.0,93230.0,0.00059458]
[1735514045777,0.00150565,93231.0,93230.0,0.00059458]
[1735514045989,0.1,93249.0,93230.0,0.00059458]
[1735514046194,0.00151736,93231.0,93230.0,0.00059458]
[1735514046392,0.001,93241.0,93230.0,0.00059458]
[1735514046596,0.00151736,93231.0,93230.0,0.00059458]
[1735514046829,0.05197484,93240.0,93230.0,0.00159458]
[1735514047039,0.05197484,93240.0,93230.0,0.00059458]
[1735514047242,0.00151736,93239.0,93230.0,0.00059458]
[1735514047441,0.001,93231.0,93230.0,0.00954458]
[1735514047601,0.0816,93250.0,93230.0,0.00054458]
[1735514047799,0.00151736,93249.0,93230.0,0.00054458]
[1735514048011,0.001,93240.0,93230.0,0.00854458]
[1735514048216,0.13331602,93250.0,93230.0,0.00054458]
[1735514048442,0.00151736,93249.0,93230.0,0.00054458]
[1735514048960,0.001,93231.0,93230.0,0.00954458]
[1735514050772,0.1,93246.0,93230.0,0.00054458]
[1735514050979,0.0533482,93245.0,93230.0,0.00054458]
[1735514051181,0.14928598,93245.0,93230.0,0.00354458]
[1735514051468,0.14928598,93245.0,93230.0,0.00054458]
[1735514051872,0.14928598,93245.0,93230.0,0.00954458]
[1735514052255,0.14928598,93245.0,93230.0,0.01054458]
[1735514052455,0.0533482,93245.0,93230.0,0.01054458]
[1735514053324,0.0533482,93245.0,93230.0,0.01049458]
[1735514055250,0.0533482,93245.0,93230.0,0.01549458]
[1735514055251,0.00151715,93245.0,93230.0,0.01549458]
[1735514055455,0.00151715,93245.0,93231.0,0.0010726]
[1735514055669,0.00151367,93244.0,93230.0,0.01549458]
[1735514055872,0.0001706,93249.0,93230.0,0.01549458]
[1735514056215,0.00151965,93248.0,93230.0,0.01549458]
[1735514056435,0.00151965,93248.0,93230.0,0.00149458]
[1735514057039,0.05177354,93247.0,93230.0,0.00149458]
[1735514057489,0.00151965,93246.0,93230.0,0.00049458]
[1735514057689,0.05183105,93245.0,93231.0,0.001]
[1735514058217,0.00151965,93244.0,93231.0,0.005]
[1735514058423,0.00151965,93244.0,93230.0,0.00149458]
[1735514058623,0.05188857,93243.0,93230.0,0.00649458]
[1735514058875,0.00151726,93242.0,93230.0,0.00549458]
[1735514059076,0.05194608,93241.0,93230.0,0.00049458]
[1735514059271,0.05194608,93241.0,93231.0,0.007]
[1735514059434,0.07480241,93241.0,93231.0,0.007]
[1735514059645,0.00151704,93240.0,93231.0,0.001]
[1735514059856,0.05197484,93239.0,93231.0,0.001]
[1735514060266,0.00151704,93238.0,93231.0,0.00095]
[1735514060467,0.05203236,93237.0,93230.0,0.00649458]
[1735514060687,0.05203236,93237.0,93230.0,0.00839458]
[1735514060884,0.00151704,93236.0,93230.0,0.00839458]
[1735514061116,0.05211864,93235.0,93230.0,0.00839458]
[1735514061319,0.05211864,93235.0,93230.0,0.00039458]
[1735514061724,0.00151704,93234.0,93230.0,0.00039458]
[1735514062152,0.09593778,93241.0,93230.0,0.00039458]
[1735514062354,0.00151289,93233.0,93230.0,0.00339458]
[1735514062593,0.09593778,93241.0,93231.0,0.0753]
[1735514062770,0.1,93265.0,93231.0,0.0753]
[1735514062771,0.00151289,93232.0,93231.0,0.0753]
[1735514062975,0.09593778,93240.0,93231.0,0.0753]
[1735514063440,0.00151289,93239.0,93232.0,0.10398632]
[1735514063967,0.09610838,93249.0,93232.0,0.10398632]
[1735514064372,0.001,93241.0,93232.0,0.10398632]
[1735514065084,0.09610838,93249.0,93232.0,0.10398632]
[1735514065085,0.0001706,93249.0,93232.0,0.10398632]
[1735514065286,0.0001706,93249.0,93232.0,0.10698632]
[1735514065493,0.0001706,93249.0,93232.0,0.11498632]
[1735514065694,0.0001706,93249.0,93233.0,0.00084219]
[1735514065912,0.0001706,93249.0,93234.0,0.10398632]
[1735514066526,0.0001706,93249.0,93234.0,0.10393632]
[1735514066713,0.0001706,93249.0,93231.0,0.0753]
[1735514066946,0.0001706,93249.0,93232.0,0.10398632]
[1735514067250,0.0001706,93249.0,93232.0,0.10798632]
[1735514067576,0.0001706,93249.0,93232.0,0.004]
[1735514067895,0.05190788,93249.0,93232.0,0.008]
[1735514068089,0.05173728,93248.0,93230.0,0.00047988]
[1735514068318,0.05325999,93248.0,93231.0,0.002]
[1735514068694,0.05325999,93248.0,93232.0,0.007]
[1735514069116,0.05325999,93248.0,93230.0,0.00047988]
[1735514069498,0.05325999,93248.0,93230.0,0.00247988]
[1735514069704,0.05325999,93248.0,93230.0,0.00047988]
[1735514070134,0.00152271,93248.0,93230.0,0.00047988]
[1735514070333,0.00152271,93248.0,93232.0,0.0772]
[1735514070534,0.00152271,93248.0,93233.0,0.10398632]
[1735514070742,0.00152271,93248.0,93233.0,0.10393632]
[1735514071140,0.00152271,93248.0,93234.0,0.0496]
[1735514071335,0.00153501,93247.0,93235.0,0.10398632]
[1735514071896,0.09617165,93262.0,93235.0,0.10398632]
[1735514072327,0.00147156,93261.0,93235.0,0.10398632]
[1735514072878,0.0001706,93262.0,93235.0,0.10398632]
[1735514073085,0.05149782,93262.0,93235.0,0.10398632]
[1735514073306,0.00148012,93261.0,93235.0,0.11298632]
[1735514073458,0.05135597,93260.0,93235.0,0.009]
[1735514073665,0.1287,93259.0,93235.0,0.009]
[1735514073869,0.05289108,93258.0,93235.0,0.012]
[1735514074069,0.05289108,93258.0,93235.0,0.007]
[1735514074660,0.05289108,93258.0,93235.0,0.004]
[1735514074878,0.15289108,93258.0,93230.0,0.00047988]
[1735514075107,0.15289108,93258.0,93235.0,0.002]
[1735514075343,0.18106725,93258.0,93235.0,0.01]
[1735514075487,0.18106725,93258.0,93233.0,8.53e-05]
[1735514075488,0.00147762,93258.0,93233.0,8.53e-05]
[1735514075708,0.00147762,93258.0,93233.0,0.10407162]
[1735514076550,0.00347762,93258.0,93233.0,0.10407162]
[1735514076698,0.00147762,93258.0,93233.0,0.10407162]
[1735514077095,0.00147762,93258.0,93234.0,0.10505877]
[1735514077298,0.0001706,93262.0,93235.0,0.1294]
[1735514077503,0.002,93258.0,93236.0,0.1050586]
[1735514077927,0.0001706,93262.0,93236.0,0.1050586]
[1735514078452,0.005,93258.0,93236.0,0.1050586]
[1735514078881,0.0001706,93262.0,93236.0,0.1050586]
[1735514079034,0.0001706,93262.0,93236.0,0.1080586]
[1735514079237,0.0001706,93262.0,93236.0,0.1090586]
[1735514079453,0.0001706,93262.0,93236.0,0.1060586]
[1735514079657,0.001,93258.0,93236.0,0.1130586]
[1735514080150,0.0001706,93262.0,93236.0,0.1060586]
[1735514080350,0.0001706,93262.0,93236.0,0.1110586]
[1735514080560,0.0001706,93262.0,93236.0,0.1100586]
[1735514080959,0.0001706,93262.0,93236.0,0.1120586]
[1735514081317,0.0001706,93262.0,93236.0,0.1100586]
[1735514081684,0.0001706,93262.0,93236.0,0.1120586]
[1735514082277,0.0001706,93262.0,93236.0,0.10598632]
[1735514082842,0.001,93258.0,93236.0,0.11298632]
[1735514082971,0.0001706,93262.0,93236.0,0.10598632]
[1735514083181,0.0486,93260.0,93236.0,0.002]
[1735514083420,0.0801,93258.0,93236.0,0.007]
[1735514083620,0.07943612,93257.0,93236.0,0.002]
[1735514083818,0.00146662,93256.0,93236.0,0.002]
[1735514083998,0.05147098,93255.0,93236.0,0.009]
[1735514084201,0.05147098,93255.0,93236.0,0.007]
[1735514084426,0.00146662,93254.0,93236.0,0.007]
[1735514084642,0.05152847,93253.0,93236.0,0.009]
[1735514085045,0.00146662,93252.0,93236.0,0.007]
[1735514085241,0.05158599,93251.0,93236.0,0.007]
[1735514085581,0.05158599,93251.0,93233.0,8.53e-05]
[1735514085750,0.00146662,93250.0,93233.0,8.53e-05]
[1735514086168,0.00146662,93250.0,93233.0,0.10407162]
[1735514086575,0.003,93252.0,93233.0,0.10407162]
[1735514086752,0.00146662,93249.0,93233.0,0.10407162]
[1735514087102,0.00146662,93248.0,93233.0,0.10407162]
[1735514087441,0.00146662,93248.0,93234.0,0.10398632]
[1735514087815,0.0001706,93262.0,93234.0,0.10398632]
[1735514088017,0.0001706,93250.0,93234.0,0.10398632]
[1735514088776,0.0011706,93250.0,93234.0,0.10398632]
[1735514088929,0.0001706,93250.0,93234.0,0.10598632]
[1735514089339,0.0011706,93250.0,93235.0,0.1264]
[1735514089543,0.0011706,93250.0,93236.0,0.10398632]
[1735514090812,0.0001706,93250.0,93236.0,0.10398632]
[1735514092594,0.0011706,93250.0,93236.0,0.11298632]
[1735514092799,0.0011706,93250.0,93236.0,0.11598632]
[1735514094465,0.0011706,93250.0,93236.0,0.012]
[1735514099793,0.0011706,93250.0,93236.0,0.009]
[1735514100003,0.0011706,93250.0,93233.0,8.53e-05]
[1735514100004,0.0001706,93250.0,93233.0,8.53e-05]
[1735514100234,0.0021706,93250.0,93233.0,8.53e-05]
[1735514100657,0.0021706,93250.0,93234.0,0.10398632]
[1735514101297,0.00146239,93249.0,93234.0,0.10398632]
[1735514102502,0.0001706,93250.0,93235.0,0.1264]
[1735514102786,0.0001706,93250.0,93236.0,0.10398632]
[1735514103000,0.0021706,93250.0,93236.0,0.10398632]
[1735514103348,0.0001706,93250.0,93236.0,0.10398632]
[1735514103554,0.001,93249.0,93236.0,0.10398632]
[1735514104165,0.0001706,93250.0,93236.0,0.10398632]
[1735514104368,0.0001706,93250.0,93236.0,0.11298632]
[1735514104567,0.0011706,93250.0,93236.0,0.11298632]
[1735514105603,0.0011706,93250.0,93236.0,0.11598632]
[1735514106015,0.0001706,93250.0,93236.0,0.10698632]
[1735514106398,0.001,93249.0,93236.0,0.11598632]
[1735514106595,0.0001706,93250.0,93236.0,0.10698632]
[1735514107036,0.0011706,93250.0,93236.0,0.11598632]
[1735514107254,0.0001706,93250.0,93236.0,0.10698632]
[1735514107432,0.0001706,93250.0,93236.0,0.003]
[1735514107668,0.001,93249.0,93236.0,0.009]
[1735514107870,0.0001706,93250.0,93233.0,8.53e-05]
[1735514108076,0.0001706,93250.0,93236.0,0.003]
[1735514108278,0.00140599,93249.0,93236.0,0.003]
[1735514108697,0.00140599,93249.0,93233.0,8.53e-05]
[1735514109052,0.00140599,93249.0,93236.0,0.003]
[1735514109228,0.00140599,93249.0,93236.0,0.011]
[1735514109662,0.0001706,93250.0,93237.0,0.10505873]
[1735514110061,0.00140599,93249.0,93237.0,0.10505873]
[1735514110304,0.00140599,93249.0,93237.0,0.10398632]
[1735514110448,0.00140599,93249.0,93241.0,0.10398632]
[1735514110645,0.00140599,93249.0,93243.0,0.0807]
[1735514110834,0.0001706,93250.0,93244.0,0.10505855]
[1735514111036,0.0001706,93250.0,93248.0,0.10398632]
[1735514111240,0.0001706,93250.0,93249.0,0.18575851]
[1735514112026,0.0001706,93250.0,93249.0,0.18468632]
[1735514112569,0.0001706,93250.0,93249.0,0.19075839]
[1735514113172,0.0001706,93250.0,93249.0,0.18575839]